Workbook

Sheet réf
A1: Produits | B1: qté pcs par produit: | D1: Produits | E1: Notif 2015 Entrées pcs | F1: Réel 2014 Entrées pcs
A2: maison | B2: 2 | D2: maison | E2: 6591.915 | F2: 6558
A3: voiture | B3: 4 | D3: voiture | E3: 20067.648 | F3: 18824
A4: jardin | B4: 3 | D4: jardin | E4: 5203.268 | F4: 3722
A5: roue | B5: 1 | D5: roue | E5: 19562.004 | F5: 17546
A6: bracelet | B6: 5 | D6: bracelet | E6: 9646.32 | F6: 8635
D7: crayons | E7: 11912.814 | F7: 11957
D8: livre | E8: 1950 | F8: 1825

Sheet entrees pcs
B2: Produits | C2: Réel 2014 | D2: Notif 2015 | E2: Notif 2015 Cumul | F2: janv | G2: Février S06 à S09 | H2: Mars S10 à S13 | I2: Avril S14 à S18 | J2: Mai S19 à S22 | K2: Juin S23 à S26 | L2: Juillet S27 à S31 | M2: Aout S32 à S35 | N2: Septembre S36 à S39 | O2: Octobre S40 à S44 | P2: Novembre S45 à S48 | Q2: Décembre S49 à S52 | R2: Réel 2015 Cumul | S2: Ecart réel vs CG | T2: Colonne2
B3: maison | C3: 345 | D3: 456 | E3: =D3/52*$C$13 -> 412 | G3: 12 | I3: 27 | K3: 40 | M3: 53 | Q3: =VLOOKUP($B3,'[1]BDD entrées'!$B$15:$N$22,13,FALSE) -> 0 | R3: =SUM(F3:Q3) -> 132 | S3: =R3-E3 -> -280 | T3: =S3/E3 -> -68%
B4: voiture | C4: 456 | D4: 457 | E4: 413 | G4: 14 | I4: 29 | K4: 42 | N4: 55 | Q4: =VLOOKUP($B4,'[1]BDD entrées'!$B$15:$N$22,13,FALSE) -> 0 | R4: =SUM(F4:Q4) -> 140 | S4: =R4-E4 -> -273 | T4: =S4/E4 -> -66% | V4: =IF(SUM(F10:Q10)=R10,"OK","Faux") -> OK
B5: jardin | C5: 123 | D5: 234 | E5: 212 | F5: 3 | H5: 23 | J5: 36 | L5: 48 | O5: 61 | Q5: =VLOOKUP($B5,'[1]BDD entrées'!$B$15:$N$22,13,FALSE) -> 0 | R5: 171 | S5: -40 | T5: -19% | V5: =IF(#REF!=R16,"OK","Faux") -> 
B6: roue | C6: 321 | D6: 356 | E6: 322 | G6: 15 | I6: 32 | L6: 44 | O6: 57 | Q6: =VLOOKUP($B6,'[1]BDD entrées'!$B$15:$N$22,13,FALSE) -> 0 | R6: 148 | S6: -174 | T6: -54% | V6: Vérifier moyenne
B7: bracelet | C7: 543 | D7: 567 | E7: 512 | F7: 1 | Q7: =VLOOKUP($B7,'[1]BDD entrées'!$B$15:$N$22,13,FALSE) -> 0 | R7: 1 | S7: =R7-E7 -> -511 | T7: -100%
B8: crayons | C8: 678 | D8: 680 | E8: 615 | F8: 45 | I8: 25 | J8: 38 | M8: 51 | P8: 63 | Q8: =VLOOKUP($B8,'[1]BDD entrées'!$B$15:$N$22,13,FALSE) -> 0 | R8: 222 | S8: -393 | T8: -64%
B9: livre | C9: 500 | D9: 500 | E9: 452 | F9: 2 | H9: 17 | I9: 34 | L9: 46 | O9: 59 | Q9: =VLOOKUP($B9,'[1]BDD entrées'!$B$15:$N$22,13,FALSE) -> 0 | R9: 158 | S9: -294 | T9: -65%
B10: Total 1 | C10: =SUM(C3:C9) -> 2,966 | D10: 3,250 | E10: 2,938 | F10: 51 | G10: 41 | H10: 40 | I10: 147 | J10: 74 | K10: 82 | L10: 139 | M10: 103 | N10: 55 | O10: 177 | P10: 63 | Q10: 0 | R10: =SUM(F10:Q10) -> 972 | S10: =R10-E10 -> -1,966 | T10: -67%
B13: NB semaine | C13: =D13-1 -> 47 | D13: 48
C14: Attention -1 non prise en compte de la semaine 1
D15: Moy 2014 | E15: Moy 2015 | F15: janv | G15: févr. | H15: mars | I15: avr. | J15: mai | K15: juin | L15: juil. | M15: août | N15: sept. | O15: oct. | P15: nov. | Q15: déc. | R15: Cumul
B16: Réel 2015 | D16: =C10/12 -> 247 | E16: =AVERAGE(F16:P16) -> 88 | F16: =F10 -> 51 | G16: =G10 -> 41 | H16: 40 | I16: 147 | J16: 74 | K16: 82 | L16: 139 | M16: 103 | N16: 55 | O16: 177 | P16: 63 | Q16: 0 | R16: =#REF! -> 
B17: Notif 2015 | F17: =$D$10/12 -> 271 | G17: =$D$10/12 -> 271 | H17: 271 | I17: 271 | J17: 271 | K17: 271 | L17: 271 | M17: 271 | N17: 271 | O17: 271 | P17: 271 | Q17: 271
B18: Réel 2014 | D18: 0 | E18: 0 | F18: 200 | G18: 300 | H18: 156 | I18: 253 | J18: 345 | K18: 324 | L18: 287 | M18: 189 | N18: 301 | O18: 298 | P18: 123 | Q18: 234

Sheet bdd entrées
B1: S1 | C1: S2 | D1: S3 | E1: S4 | F1: S5 | G1: S6 | H1: S7 | I1: S8 | J1: S9 | K1: S10 | L1: S11 | M1: S12 | N1: S13 | O1: S14 | P1: S15 | Q1: S16 | R1: S17 | S1: S18 | T1: S19 | U1: S20 | V1: S21 | W1: S22 | X1: S23 | Y1: S24 | Z1: S25 | AA1: S26 | AB1: S27 | AC1: S28 | AD1: S29 | AE1: S30 | AF1: S31 | AG1: S32 | AH1: S33 | AI1: S34 | AJ1: S35 | AK1: S36 | AL1: S37 | AM1: S38 | AN1: S39 | AO1: S40 | AP1: S41 | AQ1: S42 | AR1: S43 | AS1: S44 | AT1: S45 | AU1: S46 | AV1: S47 | AW1: S48 | AX1: S49 | AY1: S50 | AZ1: S51 | BA1: S52
A2: maison | B2: 0
A3: voiture | B3: 0
A4: jardin | B4: 0
A5: roue | B5: 0
A6: bracelet | B6: 0
A7: crayons | B7: 0
A8: livre
A9: Total général | B9: =SUM(B2:B8) -> 0 | C9: 0 | D9: 0 | E9: 0 | F9: 0 | G9: 0 | H9: 0 | I9: 0 | J9: 0 | K9: 0 | L9: 0 | M9: 0 | N9: 0 | O9: 0 | P9: 0 | Q9: 0 | R9: 0 | S9: 0 | T9: 0 | U9: 0 | V9: 0 | W9: 0 | X9: 0 | Y9: 0 | Z9: 0 | AA9: 0 | AB9: 0 | AC9: 0 | AD9: 0 | AE9: 0 | AF9: 0 | AG9: 0 | AH9: =SUM(AH2:AH8) -> 0 | AI9: 0 | AJ9: 0 | AK9: 0 | AL9: 0 | AM9: 0 | AN9: 0 | AO9: 0 | AP9: 0 | AQ9: 0 | AR9: 0 | AS9: 0 | AT9: 0 | AU9: 0 | AV9: 0 | AW9: 0 | AX9: 0 | AY9: 0 | AZ9: 0 | BA9: 0
B13: Quantité S01 à S05 | C13: Quantité S06 à S09 | D13: Quantité S10 à S13 | E13: Quantité S14 à S18 | F13: Quantité S19 à S22 | G13: Quantité S23 à S26 | H13: Quantité S27 à S31 | I13: Quantité S32 à S35 | J13: Quantité S36 à S39 | K13: Quantité S40 à S44 | L13: Quantité S45 à S48 | M13: Quantité S49 à S52
B14: Février | C14: 2 | D14: 3 | E14: 4 | F14: 5 | G14: 6 | H14: 7 | I14: 8 | J14: 9 | K14: 0 | L14: 0 | M14: 0
A15: =A2 -> maison | B15: =SUM(B2:F2) -> 0 | C15: =SUM(G2:J2) -> 0 | D15: =SUM(K2:N2) -> 0 | E15: =SUM(O2:S2) -> 0 | F15: =SUM(T2:W2) -> 0 | G15: =SUM(X2:AA2) -> 0 | H15: =SUM(AB2:AF2) -> 0 | I15: =SUM(AG2:AJ2) -> 0 | J15: =SUM(AK2:AN2) -> 0 | K15: =SUM(AO2:AS2) -> 0 | L15: =SUM(AT2:AW2) -> 0 | M15: =SUM(AX2:BA2) -> 0
A16: voiture | B16: 0 | C16: 0 | D16: 0 | E16: 0 | F16: 0 | G16: 0 | H16: 0 | I16: 0 | J16: 0 | K16: 0 | L16: 0 | M16: 0
A17: jardin | B17: 0 | C17: 0 | D17: 0 | E17: 0 | F17: 0 | G17: 0 | H17: 0 | I17: 0 | J17: 0 | K17: 0 | L17: 0 | M17: 0
A18: roue | B18: 0 | C18: 0 | D18: 0 | E18: 0 | F18: 0 | G18: 0 | H18: 0 | I18: 0 | J18: 0 | K18: 0 | L18: 0 | M18: 0
A19: bracelet | B19: 0 | C19: 0 | D19: 0 | E19: 0 | F19: 0 | G19: 0 | H19: 0 | I19: 0 | J19: 0 | K19: 0 | L19: 0 | M19: 0
A20: crayons | B20: 0 | C20: 0 | D20: 0 | E20: 0 | F20: 0 | G20: 0 | H20: 0 | I20: 0 | J20: 0 | K20: 0 | L20: 0 | M20: 0
A21: livre | B21: 0 | C21: 0 | D21: 0 | E21: 0 | F21: 0 | G21: 0 | H21: 0 | I21: 0 | J21: 0 | K21: 0 | L21: 0 | M21: 0
A22: Total général | B22: =SUM(B15:B21) -> 0 | C22: 0 | D22: 0 | E22: 0 | F22: 0 | G22: 0 | H22: 0 | I22: 0 | J22: 0 | K22: =SUM(K15:K21) -> 0 | L22: =SUM(L15:L21) -> 0 | M22: =SUM(M15:M21) -> 0

Sheet bdd e
A1: Année | B1: Mois | C1: N° SEM reçue | D1: date | E1: Date reçue | F1: N°PRODUIT | G1: Client | H1: produit | I1: Qty | J1: CDE | K1: S/T | L1: F/G/H
A2: 2015 | B2: 2015-01-05 | C2: =WEEKNUM(BDD_entrees_2015[[#This Row],[Date reçue]],1) -> 2 | D2: 2015-01-05 | E2: 2015-01-05 | G2: CLIENT 1 | H2: maison | I2: 1.0 | J2: 123 | K2: OUI | L2: R
A3: 2015 | B3: 2015-01-05 | C3: =WEEKNUM(BDD_entrees_2015[[#This Row],[Date reçue]],1) -> 2 | D3: 2015-01-05 | E3: 2015-01-05 | G3: CLIENT 2 | H3: voiture | I3: 2.0 | J3: 456 | K3: NON | L3: F
A4: 2015 | B4: 2015-01-05 | C4: =WEEKNUM(BDD_entrees_2015[[#This Row],[Date reçue]],1) -> 2 | D4: 2015-01-05 | E4: 2015-01-05 | G4: CLIENT 3 | H4: jardin | I4: 3.0 | J4: 789 | K4: OUI
A5: 2015 | B5: 2015-01-05 | C5: =WEEKNUM(BDD_entrees_2015[[#This Row],[Date reçue]],1) -> 2 | D5: 2015-01-05 | E5: 2015-01-05 | G5: CLIENT 4 | H5: roue | I5: 45.0 | J5: 1122 | K5: NON | L5: G
A6: 2015 | B6: 2015-02-03 | C6: =WEEKNUM(BDD_entrees_2015[[#This Row],[Date reçue]],1) -> 6 | D6: 2015-02-03 | E6: 2015-02-03 | G6: CLIENT 5 | H6: bracelet | I6: 12.0 | J6: 1455 | K6: OUI | L6: R
A7: 2015 | B7: 2015-02-15 | C7: =WEEKNUM(BDD_entrees_2015[[#This Row],[Date reçue]],1) -> 8 | D7: 2015-02-15 | E7: 2015-02-15 | G7: CLIENT 6 | H7: crayons | I7: 14.0 | J7: 1788 | K7: NON | L7: G
A8: 2015 | B8: 2015-02-28 | C8: =WEEKNUM(BDD_entrees_2015[[#This Row],[Date reçue]],1) -> 9 | D8: 2015-02-28 | E8: 2015-02-28 | G8: CLIENT 7 | H8: livre | I8: 15.0 | J8: 2121 | K8: OUI
A9: 2015 | B9: 2015-03-03 | C9: =WEEKNUM(BDD_entrees_2015[[#This Row],[Date reçue]],1) -> 10 | D9: 2015-03-03 | E9: 2015-03-03 | G9: CLIENT 1 | H9: voiture | I9: 17.0 | J9: 2454 | K9: NON | L9: H
A10: 2015 | B10: 2015-03-14 | C10: =WEEKNUM(BDD_entrees_2015[[#This Row],[Date reçue]],1) -> 11 | D10: 2015-03-14 | E10: 2015-03-14 | G10: CLIENT 2 | H10: jardin | I10: 23.1 | J10: 2787 | K10: OUI | L10: R
A11: 2015 | B11: 2015-03-29 | C11: =WEEKNUM(BDD_entrees_2015[[#This Row],[Date reçue]],1) -> 14 | D11: 2015-03-29 | E11: 2015-03-29 | G11: CLIENT 3 | H11: roue | I11: 25.2 | J11: 3120 | K11: NON | L11: F
A12: 2015 | B12: 2015-04-04 | C12: =WEEKNUM(BDD_entrees_2015[[#This Row],[Date reçue]],1) -> 14 | D12: 2015-04-04 | E12: 2015-04-04 | G12: CLIENT 4 | H12: bracelet | I12: 27.3 | J12: 3453 | K12: OUI
A13: 2015 | B13: 2015-04-05 | C13: =WEEKNUM(BDD_entrees_2015[[#This Row],[Date reçue]],1) -> 15 | D13: 2015-04-05 | E13: 2015-04-05 | G13: CLIENT 5 | H13: crayons | I13: 29.4 | J13: 3786 | K13: NON | L13: G
A14: 2015 | B14: 2015-05-02 | C14: =WEEKNUM(BDD_entrees_2015[[#This Row],[Date reçue]],1) -> 18 | D14: 2015-05-02 | E14: 2015-05-02 | G14: CLIENT 6 | H14: livre | I14: 31.5 | J14: 4119 | K14: OUI | L14: R
A15: 2015 | B15: 2015-04-30 | C15: =WEEKNUM(BDD_entrees_2015[[#This Row],[Date reçue]],1) -> 18 | D15: 2015-04-30 | E15: 2015-04-30 | G15: CLIENT 7 | H15: voiture | I15: 33.6 | J15: 4452 | K15: NON | L15: H
A16: 2015 | B16: 2015-05-10 | C16: =WEEKNUM(BDD_entrees_2015[[#This Row],[Date reçue]],1) -> 20 | D16: 2015-05-10 | E16: 2015-05-10 | G16: CLIENT 15 | H16: jardin | I16: 35.8 | J16: 4785 | K16: OUI
A17: 2015 | B17: 2015-05-20 | C17: =WEEKNUM(BDD_entrees_2015[[#This Row],[Date reçue]],1) -> 21 | D17: 2015-05-20 | E17: 2015-05-20 | G17: CLIENT 16 | H17: roue | I17: 37.9 | J17: 5118 | K17: NON | L17: F
A18: 2015 | B18: 2015-06-03 | C18: =WEEKNUM(BDD_entrees_2015[[#This Row],[Date reçue]],1) -> 23 | D18: 2015-06-03 | E18: 2015-06-03 | G18: CLIENT 17 | H18: bracelet | I18: 40.0 | J18: 5451 | K18: OUI
A19: 2015 | B19: 2015-06-06 | C19: =WEEKNUM(BDD_entrees_2015[[#This Row],[Date reçue]],1) -> 23 | D19: 2015-06-06 | E19: 2015-06-06 | G19: CLIENT 18 | H19: crayons | I19: 42.1 | J19: 5784 | K19: NON | L19: G
A20: 2015 | B20: 2015-07-03 | C20: =WEEKNUM(BDD_entrees_2015[[#This Row],[Date reçue]],1) -> 27 | D20: 2015-07-03 | E20: 2015-07-03 | G20: CLIENT 19 | H20: livre | I20: 44.2 | J20: 6117 | K20: OUI | L20: R
A21: 2015 | B21: 2015-07-16 | C21: =WEEKNUM(BDD_entrees_2015[[#This Row],[Date reçue]],1) -> 29 | D21: 2015-07-16 | E21: 2015-07-16 | G21: CLIENT 20 | H21: voiture | I21: 46.3 | J21: 6450 | K21: NON | L21: H
A22: 2015 | B22: 2015-07-30 | C22: =WEEKNUM(BDD_entrees_2015[[#This Row],[Date reçue]],1) -> 31 | D22: 2015-07-30 | E22: 2015-07-30 | G22: CLIENT 21 | H22: jardin | I22: 48.4 | J22: 6783 | K22: OUI
A23: 2015 | B23: 2015-08-05 | C23: =WEEKNUM(BDD_entrees_2015[[#This Row],[Date reçue]],1) -> 32 | D23: 2015-08-05 | E23: 2015-08-05 | G23: CLIENT 22 | H23: roue | I23: 50.5 | J23: 7116 | K23: NON | L23: F
A24: 2015 | B24: 2015-08-28 | C24: =WEEKNUM(BDD_entrees_2015[[#This Row],[Date reçue]],1) -> 35 | D24: 2015-08-28 | E24: 2015-08-28 | G24: CLIENT 23 | H24: bracelet | I24: 52.6 | J24: 7449 | K24: OUI
A25: 2015 | B25: 2015-09-09 | C25: =WEEKNUM(BDD_entrees_2015[[#This Row],[Date reçue]],1) -> 37 | D25: 2015-09-09 | E25: 2015-09-09 | G25: CLIENT 24 | H25: crayons | I25: 54.7 | J25: 7782 | K25: NON | L25: G
A26: 2015 | B26: 2015-09-30 | C26: =WEEKNUM(BDD_entrees_2015[[#This Row],[Date reçue]],1) -> 40 | D26: 2015-09-30 | E26: 2015-09-30 | G26: CLIENT 25 | H26: livre | I26: 56.8 | J26: 8115 | K26: OUI
A27: 2015 | B27: 2015-10-10 | C27: =WEEKNUM(BDD_entrees_2015[[#This Row],[Date reçue]],1) -> 41 | D27: 2015-10-10 | E27: 2015-10-10 | G27: CLIENT 26 | H27: voiture | I27: 58.9 | J27: 8448 | K27: NON | L27: H
A28: 2015 | B28: 2015-10-30 | C28: =WEEKNUM(BDD_entrees_2015[[#This Row],[Date reçue]],1) -> 44 | D28: 2015-10-30 | E28: 2015-10-30 | G28: CLIENT 27 | H28: jardin | I28: 61.0 | J28: 8781 | K28: OUI | L28: R
A29: 2015 | B29: 2015-11-11 | C29: =WEEKNUM(BDD_entrees_2015[[#This Row],[Date reçue]],1) -> 46 | D29: 2015-11-11 | E29: 2015-11-11 | G29: CLIENT 28 | H29: roue | I29: 63.1 | J29: 9114 | K29: NON | L29: F
A30: 2015 | B30: 2015-11-30 | C30: =WEEKNUM(BDD_entrees_2015[[#This Row],[Date reçue]],1) -> 49 | D30: 2015-11-30 | E30: 2015-11-30 | G30: CLIENT 29 | H30: bracelet | I30: 65.3 | J30: 9447 | K30: OUI
A31: 2015 | B31: 2015-12-18 | C31: =WEEKNUM(BDD_entrees_2015[[#This Row],[Date reçue]],1) -> 51 | D31: 2015-12-18 | E31: 2015-12-18 | G31: CLIENT 30 | H31: crayons | I31: 67.4 | J31: 9780 | K31: NON | L31: H
A32: 2015 | B32: 2015-12-30 | C32: =WEEKNUM(BDD_entrees_2015[[#This Row],[Date reçue]],1) -> 53 | D32: 2015-12-30 | E32: 2015-12-30 | G32: CLIENT 31 | H32: livre | I32: 69.5 | J32: 10113 | K32: OUI | L32: R

Sheet e tcd pcs
A1: material | B1: Réel 2014 | C1: Notif 2015 | D1: Notif 2015 Cumul | E1: janv | F1: févr. | G1: mars | H1: avr. | I1: mai | J1: juin | K1: juil. | L1: août | M1: sept. | N1: oct. | O1: nov. | P1: déc. | Q1: Réel 2015 Cumul | R1: Ecart réel vs NOTIF | S1: TX
E2: =SUMIFS(BDD_entrees_2015[Qty],BDD_entrees_2015[[produit ]],entrees_pcs_cle[[#This Row],[material]],BDD_entrees_2015[date],entrees_pcs_cle[[#Headers],[janv]]) -> 0
A3: bracelet | B3: 345 | C3: 456 | D3: 412 | E3: =SUMIFS(BDD_entrees_2015[Qty],BDD_entrees_2015[[produit ]],entrees_pcs_cle[[#This Row],[material]],BDD_entrees_2015[date],entrees_pcs_cle[[#Headers],[janv]]) -> 0 | F3: 12 | H3: 27 | J3: 40 | L3: 53 | Q3: 132 | R3: -280 | S3: -68%
A4: crayons | B4: 456 | C4: 457 | D4: 413 | E4: =SUMIFS(BDD_entrees_2015[Qty],BDD_entrees_2015[[produit ]],entrees_pcs_cle[[#This Row],[material]],BDD_entrees_2015[date],entrees_pcs_cle[[#Headers],[janv]]) -> 0 | F4: 14 | H4: 29 | J4: 42 | M4: 55 | Q4: 140 | R4: -273 | S4: -66%
A5: jardin | B5: 123 | C5: 234 | D5: 212 | E5: =SUMIFS(BDD_entrees_2015[Qty],BDD_entrees_2015[[produit ]],entrees_pcs_cle[[#This Row],[material]],BDD_entrees_2015[date],entrees_pcs_cle[[#Headers],[janv]]) -> 0 | G5: 23 | I5: 36 | K5: 48 | N5: 61 | Q5: 168 | R5: -44 | S5: -21%
A6: livre | B6: 321 | C6: 356 | D6: 322 | E6: =SUMIFS(BDD_entrees_2015[Qty],BDD_entrees_2015[[produit ]],entrees_pcs_cle[[#This Row],[material]],BDD_entrees_2015[date],entrees_pcs_cle[[#Headers],[janv]]) -> 0 | F6: 15 | H6: 32 | K6: 44 | N6: 57 | Q6: 148 | R6: -174 | S6: -54%
A7: maison | B7: 543 | C7: 567 | D7: 512 | E7: =SUMIFS(BDD_entrees_2015[Qty],BDD_entrees_2015[[produit ]],entrees_pcs_cle[[#This Row],[material]],BDD_entrees_2015[date],entrees_pcs_cle[[#Headers],[janv]]) -> 0 | Q7: 0 | R7: -512 | S7: -100%
A8: roue | B8: 678 | C8: 680 | D8: 615 | E8: =SUMIFS(BDD_entrees_2015[Qty],BDD_entrees_2015[[produit ]],entrees_pcs_cle[[#This Row],[material]],BDD_entrees_2015[date],entrees_pcs_cle[[#Headers],[janv]]) -> 0 | H8: 25 | I8: 38 | L8: 51 | O8: 63 | Q8: 177 | R8: -438 | S8: -71%
A9: voiture | B9: 500 | C9: 500 | D9: 452 | E9: =SUMIFS(BDD_entrees_2015[Qty],BDD_entrees_2015[[produit ]],entrees_pcs_cle[[#This Row],[material]],BDD_entrees_2015[date],entrees_pcs_cle[[#Headers],[janv]]) -> 0 | G9: 17 | H9: 34 | K9: 46 | N9: 59 | Q9: 156 | R9: -296 | S9: -65%
A10: Total 1 | B10: =SUM(B3:B9) -> 2,966 | C10: 3,250 | E10: =SUMIFS(BDD_entrees_2015[Qty],BDD_entrees_2015[[produit ]],entrees_pcs_cle[[#This Row],[material]],BDD_entrees_2015[date],entrees_pcs_cle[[#Headers],[janv]]) -> 0 | F10: 8 | G10: 8 | H10: 8 | I10: 8 | J10: 8 | K10: 8 | L10: 8 | M10: 8 | N10: 8 | O10: 8 | S10: 111%
A18: Somme de Qty | B18: Semaines
B19: Janvier | C19: Février | D19: Mars | E19: Avril | F19: Mai | G19: Juin | H19: Juillet | I19: Août | J19: Septembre | K19: Octobre | L19: Novembre | M19: Réel cumul 2015
A20: Étiquettes de lignes
A21: bracelet | C21: 12 | E21: 27 | G21: 40 | I21: 53 | M21: 132
A22: crayons | C22: 14 | E22: 29 | G22: 42 | J22: 55 | M22: 140
A23: jardin | B23: 3 | D23: 23 | F23: 36 | H23: 48 | K23: 61 | M23: 171
A24: livre | C24: 15 | E24: 32 | H24: 44 | K24: 57 | M24: 148
A25: maison | B25: 1 | M25: 1
A26: roue | B26: 45 | E26: 25 | F26: 38 | I26: 51 | L26: 63 | M26: 222
A27: voiture | B27: 2 | D27: 17 | E27: 34 | H27: 46 | K27: 59 | M27: 158
A28: Réel cumul 2015 | B28: 51 | C28: 41 | D28: 40 | E28: 147 | F28: 74 | G28: 82 | H28: 139 | I28: 103 | J28: 55 | K28: 177 | L28: 63 | M28: 972

Sheet synthèse
A2: Produits | B2: Réel 2014 | C2: Notif 2015 | D2: Notif 2015 Cumul | E2: janv | F2: Février S06 à S09 | G2: Mars S10 à S13 | H2: Avril S14 à S18 | I2: Mai S19 à S22 | J2: Juin S23 à S26 | K2: Juillet S27 à S31 | L2: Aout S32 à S35 | M2: Septembre S36 à S39 | N2: Octobre S40 à S44 | O2: Novembre S45 à S48 | P2: Décembre S49 à S52 | Q2: Réel 2015 Cumul | R2: Ecart réel vs CG | S2: Colonne2
A3: maison | B3: 345 | C3: 456 | D3: 412 | F3: 12 | H3: 27 | J3: 40 | L3: 53 | P3: 0 | Q3: 132 | R3: -280 | S3: -68%
A4: voiture | B4: 456 | C4: 457 | D4: 413 | F4: 14 | H4: 29 | J4: 42 | M4: 55 | P4: 0 | Q4: 140 | R4: -273 | S4: -66%
A5: jardin | B5: 123 | C5: 234 | D5: 212 | E5: 3 | G5: 23 | I5: 36 | K5: 48 | N5: 61 | P5: 0 | Q5: 171 | R5: -40 | S5: -19%
A6: roue | B6: 321 | C6: 356 | D6: 322 | F6: 15 | H6: 32 | K6: 44 | N6: 57 | P6: 0 | Q6: 148 | R6: -174 | S6: -54%
A7: bracelet | B7: 543 | C7: 567 | D7: 512 | E7: 1 | P7: 0 | Q7: 1 | R7: -511 | S7: -100%
A8: crayons | B8: 678 | C8: 680 | D8: 615 | E8: 45 | H8: 25 | I8: 38 | L8: 51 | O8: 63 | P8: 0 | Q8: 222 | R8: -393 | S8: -64%
A9: livre | B9: 500 | C9: 500 | D9: 452 | E9: 2 | G9: 17 | H9: 34 | K9: 46 | N9: 59 | P9: 0 | Q9: 158 | R9: -294 | S9: -65%
A10: Total 1 | B10: 2,966 | C10: 3,250 | D10: 2,938 | E10: 51 | F10: 41 | G10: 40 | H10: 147 | I10: 74 | J10: 82 | K10: 139 | L10: 103 | M10: 55 | N10: 177 | O10: 63 | P10: 0 | Q10: 972 | R10: -1,966 | S10: -67%
